bitfinex/quotes_BTCUSD_20240721
["timestamp","ask_amount","ask_price","bid_price","bid_amount"]
[1721532392720,1.78613794,67408.0,67407.0,0.001924]
[1721532392927,1.87313794,67408.0,67407.0,0.001924]
[1721532393132,1.79713794,67408.0,67407.0,0.002924]
[1721532393383,1.85699389,67408.0,67407.0,0.002924]
[1721532393544,1.80109389,67408.0,67407.0,0.001924]
[1721532393753,1.76706795,67408.0,67407.0,0.001924]
[1721532393975,1.78717001,67408.0,67407.0,0.000924]
[1721532394179,1.78717001,67408.0,67407.0,0.001924]
[1721532394180,1.65615758,67408.0,67407.0,0.001924]
[1721532394387,1.74487393,67408.0,67407.0,0.001924]
[1721532395223,1.74987393,67408.0,67407.0,0.002924]
[1721532395684,1.73087393,67408.0,67407.0,0.000924]
[1721532396086,0.880798,67405.0,67404.0,0.080718]
[1721532396291,1.25048601,67405.0,67404.0,0.080718]
[1721532396489,1.29483451,67405.0,67404.0,0.080718]
[1721532397095,1.29483448,67405.0,67404.0,0.080718]
[1721532397721,1.30583448,67405.0,67404.0,0.081718]
[1721532397897,1.46018405,67405.0,67404.0,0.081718]
[1721532398455,1.46618405,67405.0,67404.0,0.082718]
[1721532398725,1.46618405,67405.0,67404.0,0.083642]
[1721532399129,1.50783792,67405.0,67404.0,0.083642]
[1721532399344,1.59783792,67405.0,67404.0,0.002924]
[1721532399935,1.65583792,67405.0,67404.0,0.002924]
[1721532400284,1.65582501,67405.0,67404.0,0.002924]
[1721532400712,1.65582011,67405.0,67404.0,0.002924]
[1721532403133,1.61148945,67405.0,67404.0,0.002924]
[1721532403335,1.88305456,67405.0,67404.0,0.002924]
[1721532403535,1.97169286,67405.0,67404.0,0.002924]
[1721532403739,1.88305456,67405.0,67404.0,0.002924]
[1721532404350,1.97168423,67405.0,67404.0,0.002924]
[1721532404753,1.88305456,67405.0,67404.0,0.002924]
[1721532405328,1.88167517,67405.0,67404.0,0.002924]
[1721532405577,1.97167517,67405.0,67404.0,0.002924]
[1721532406652,0.880882,67398.0,67397.0,0.0766]
[1721532406835,1.19436374,67398.0,67397.0,0.0766]
[1721532407239,1.21736374,67398.0,67397.0,0.0766]
[1721532407594,0.92256087,67396.0,67395.0,0.14]
[1721532407794,1.24828874,67396.0,67395.0,0.14]
[1721532407999,1.24779659,67396.0,67395.0,0.14]
[1721532408944,1.25179659,67396.0,67395.0,0.14]
[1721532409359,1.25479659,67396.0,67395.0,0.14]
[1721532409558,1.40914616,67396.0,67395.0,0.14]
[1721532411172,1.64654816,67396.0,67395.0,0.14]
[1721532411373,1.64654816,67396.0,67395.0,0.0766]
[1721532411629,1.68820203,67396.0,67395.0,0.0766]
[1721532412161,1.68420203,67396.0,67395.0,0.0766]
[1721532412677,1.69020203,67396.0,67395.0,0.0776]
[1721532412985,1.68720203,67396.0,67395.0,0.0776]
[1721532413184,1.69220203,67396.0,67395.0,0.0776]
[1721532413544,0.09116172,67390.0,67387.0,0.0821]
[1721532413745,0.78399568,67390.0,67387.0,0.0821]
[1721532413903,1.40312858,67390.0,67387.0,0.0821]
[1721532414106,1.72067861,67390.0,67387.0,0.0821]
[1721532414314,1.65424191,67390.0,67387.0,0.0821]
[1721532414521,1.80859148,67390.0,67387.0,0.0821]
[1721532414729,1.80859148,67390.0,67381.0,0.009207]
[1721532414730,0.04950785,67382.0,67381.0,0.091307]
[1721532414958,0.04950785,67382.0,67381.0,0.10490301]
[1721532414959,0.65216759,67382.0,67381.0,0.10490301]
[1721532415165,0.65216759,67382.0,67381.0,0.091307]
[1721532415166,0.72154974,67382.0,67381.0,0.091307]
[1721532415371,1.52390574,67382.0,67381.0,0.091307]
[1721532415576,1.52390574,67382.0,67360.0,0.00834613]
[1721532415577,0.356272,67364.0,67360.0,0.00834613]
[1721532415783,0.425372,67364.0,67361.0,0.00834613]
[1721532415996,0.662887,67364.0,67361.0,0.00834613]
[1721532416251,0.662887,67364.0,67363.0,0.156607]
[1721532416252,0.685887,67364.0,67363.0,0.156607]
[1721532417998,0.689887,67364.0,67363.0,0.156607]
[1721532418201,0.7588757,67364.0,67363.0,0.156607]
[1721532418464,0.7568757,67364.0,67363.0,0.156607]
[1721532418665,0.7588757,67364.0,67363.0,0.156607]
[1721532419489,0.9963907,67364.0,67363.0,0.156607]
[1721532420526,1.20028029,67364.0,67363.0,0.156607]
[1721532421777,1.13118029,67364.0,67363.0,0.156607]
[1721532421992,0.620787,67364.0,67363.0,0.156607]
[1721532422125,0.689887,67364.0,67363.0,0.156607]
[1721532425860,0.927402,67364.0,67363.0,0.156607]
[1721532427005,1.13129159,67364.0,67363.0,0.156607]
[1721532427248,1.24442075,67364.0,67363.0,0.156607]
[1721532429595,1.00690575,67364.0,67363.0,0.156607]
[1721532429953,1.24442075,67364.0,67363.0,0.156607]
[1721532430651,1.33442075,67364.0,67363.0,0.156607]
[1721532430816,1.48717462,67364.0,67363.0,0.009207]
[1721532431034,1.47607462,67364.0,67363.0,0.009207]
[1721532431486,1.43442075,67364.0,67363.0,0.009207]
[1721532432312,1.43242075,67364.0,67363.0,0.009207]
[1721532432486,1.43042075,67364.0,67363.0,0.009207]
[1721532432693,1.43042075,67364.0,67363.0,0.152107]
[1721532432694,1.32829159,67364.0,67363.0,0.152107]
[1721532432895,1.32829159,67364.0,67363.0,0.153107]
[1721532433274,1.31729159,67364.0,67363.0,0.152107]
[1721532433468,1.49964116,67364.0,67363.0,0.153107]
[1721532435319,1.43054116,67364.0,67363.0,0.153107]
[1721532435529,1.49964116,67364.0,67363.0,0.153107]
[1721532439388,1.49964116,67364.0,67363.0,0.086807]
[1721532439610,1.49964116,67364.0,67363.0,0.010207]
[1721532441682,0.831449,67352.0,67351.0,0.002]
[1721532441911,0.923549,67352.0,67351.0,0.002]
[1721532442087,0.923549,67352.0,67351.0,0.1449]
[1721532443133,0.925549,67352.0,67351.0,0.1449]
[1721532443597,0.927549,67352.0,67351.0,0.1449]
[1721532443863,1.02525469,67352.0,67351.0,0.1449]
[1721532444598,0.927549,67352.0,67351.0,0.1449]
[1721532446051,0.927549,67352.0,67351.0,0.15373828]
[1721532446052,0.004,67352.0,67351.0,0.15373828]
[1721532446457,0.004,67352.0,67351.0,0.27703326]
[1721532446932,0.004,67352.0,67351.0,0.27703226]
[1721532447068,0.002,67352.0,67351.0,0.29074258]
[1721532447270,0.002,67352.0,67351.0,0.40952258]
[1721532447476,0.001,67352.0,67351.0,0.40952258]
[1721532447884,0.002,67352.0,67351.0,0.2862286]
[1721532448092,0.01141,67352.0,67351.0,0.40952236]
[1721532450214,0.01141,67352.0,67351.0,0.2862286]
[1721532450421,0.01141,67352.0,67351.0,0.40952236]
[1721532450552,0.01141,67352.0,67351.0,0.29074236]
[1721532452215,0.002,67352.0,67351.0,0.29074236]
[1721532453210,0.118774,67355.0,67354.0,0.15094613]
[1721532453412,0.118774,67355.0,67354.0,0.2418267]
[1721532454636,0.356321,67355.0,67354.0,0.23348057]
[1721532454817,0.4352951,67355.0,67354.0,0.23348057]
[1721532455379,0.6728421,67355.0,67354.0,0.15630578]
[1721532455712,0.6958421,67355.0,67354.0,0.1426]
[1721532455941,0.6988421,67355.0,67354.0,0.1426]
[1721532456278,0.9363891,67355.0,67354.0,0.0782]
[1721532456624,0.9383891,67355.0,67354.0,0.0782]
[1721532457000,0.9413891,67355.0,67354.0,0.0782]
[1721532457506,0.9383891,67355.0,67354.0,0.0782]
[1721532457946,0.9403891,67355.0,67354.0,0.0782]
[1721532458230,0.96361747,67355.0,67354.0,0.0782]
[1721532459230,0.9403891,67355.0,67354.0,0.0782]
[1721532459730,0.96361747,67355.0,67354.0,0.0782]
[1721532461551,0.9403891,67355.0,67354.0,0.0782]
[1721532461730,0.96361738,67355.0,67354.0,0.0782]
[1721532462160,0.9403891,67355.0,67354.0,0.0782]
[1721532462572,0.96361747,67355.0,67354.0,0.0782]
[1721532463502,0.9403891,67355.0,67354.0,0.0782]
[1721532463924,0.96361747,67355.0,67354.0,0.0782]
[1721532465294,1.0079775,67355.0,67354.0,0.0782]
[1721532465910,1.06361747,67355.0,67354.0,0.0782]
[1721532467723,1.10799025,67355.0,67354.0,0.0782]
[1721532469154,1.10796816,67355.0,67354.0,0.0782]
[1721532469570,0.712662,67353.0,67351.0,0.002924]
[1721532469775,0.20935334,67352.0,67351.0,0.002924]
[1721532469974,0.29935334,67352.0,67351.0,0.002924]
[1721532470179,0.16500637,67352.0,67351.0,0.002924]
[1721532470991,0.20935087,67352.0,67351.0,0.002924]
[1721532471197,0.3429568,67352.0,67351.0,0.002924]
[1721532471398,1.1112833,67352.0,67351.0,0.002924]
[1721532472833,1.1112833,67352.0,67351.0,0.003924]
[1721532473013,1.1172833,67352.0,67351.0,0.003924]
[1721532473440,1.1172833,67352.0,67351.0,0.002924]
[1721532473613,1.1232833,67352.0,67351.0,0.003924]
[1721532474022,1.1924833,67352.0,67351.0,0.003924]
[1721532474227,1.25899809,67352.0,67351.0,0.003924]
[1721532475506,1.1924833,67352.0,67351.0,0.003924]
[1721532475705,1.25899903,67352.0,67351.0,0.003924]
[1721532476079,1.34899903,67352.0,67351.0,0.003924]
[1721532477740,1.2824833,67352.0,67351.0,0.003924]
[1721532477973,1.37116898,67352.0,67351.0,0.003924]
[1721532478175,1.37116898,67352.0,67351.0,0.144724]
[1721532478379,1.2824833,67352.0,67351.0,0.144724]
[1721532478864,1.34899429,67352.0,67351.0,0.144724]
[1721532479177,1.2824833,67352.0,67351.0,0.144724]
[1721532479802,1.29150526,67352.0,67351.0,0.144724]
[1721532485291,1.08869933,67352.0,67351.0,0.144724]
[1721532485529,0.96468473,67352.0,67351.0,0.15307013]
[1721532485779,0.96468473,67352.0,67351.0,0.144724]
[1721532486038,0.012,67352.0,67351.0,0.15356228]
[1721532486304,0.012,67352.0,67351.0,0.27685575]
[1721532486546,0.012,67352.0,67351.0,0.290568]
[1721532486981,0.24621708,67359.0,67358.0,0.14914613]
[1721532487186,0.3563,67359.0,67358.0,0.14914613]
[1721532487846,0.3563,67359.0,67358.0,0.1408]
[1721532488081,0.3793,67359.0,67358.0,0.1408]
[1721532488279,0.45329453,67359.0,67358.0,0.1408]
[1721532489112,0.69082853,67359.0,67358.0,0.15450675]
[1721532489314,0.75841293,67359.0,67358.0,0.15450675]
[1721532489514,0.75841293,67359.0,67358.0,0.0763]
[1721532489515,1.04030433,67359.0,67358.0,0.0763]
[1721532489718,1.04730433,67359.0,67358.0,0.0763]
[1721532489926,0.95858954,67359.0,67358.0,0.0763]
[1721532490110,0.83139,67357.0,67356.0,0.0645]
[1721532490355,0.593857,67356.0,67355.0,0.0797]
[1721532490561,0.61708401,67356.0,67355.0,0.0797]
[1721532490772,0.87762701,67356.0,67355.0,0.0797]
[1721532490984,1.03016021,67356.0,67355.0,0.0797]
[1721532491603,0.831449,67352.0,67351.0,0.082624]
[1721532491807,0.854449,67352.0,67351.0,0.082624]
[1721532492013,0.97853458,67352.0,67351.0,0.082624]
[1721532493724,0.98753458,67352.0,67351.0,0.082624]
[1721532496164,0.98753458,67352.0,67351.0,0.002924]
[1721532496165,1.31811262,67352.0,67351.0,0.002924]
[1721532496367,1.35028711,67352.0,67351.0,0.002924]
[1721532497322,1.28376364,67352.0,67351.0,0.002924]
[1721532497742,1.35029002,67352.0,67351.0,0.002924]
[1721532498700,1.32811706,67352.0,67351.0,0.147124]
[1721532499017,1.35029002,67352.0,67351.0,0.147124]
[1721532500404,1.28376364,67352.0,67351.0,0.147124]
[1721532500815,0.03222906,67352.0,67351.0,0.15547013]
[1721532501018,0.009,67352.0,67351.0,0.15547013]
[1721532501352,0.127778,67352.0,67351.0,0.16943814]
[1721532501552,0.1980655,67352.0,67351.0,0.16943814]
[1721532502126,0.1930655,67352.0,67351.0,0.16943814]
[1721532502331,0.1940655,67352.0,67351.0,0.16943814]
[1721532502678,0.118778,67352.0,67351.0,0.16943814]
[1721532502953,0.118776,67354.0,67353.0,0.00834613]
[1721532503164,0.141776,67354.0,67353.0,0.22882092]
[1721532503410,0.141776,67354.0,67353.0,0.24278736]
[1721532504223,0.142776,67354.0,67353.0,0.24278736]
[1721532505139,0.143776,67354.0,67353.0,0.24278736]
[1721532506294,0.381326,67354.0,67353.0,0.24278736]
[1721532506501,0.4476497,67354.0,67353.0,0.24278736]
[1721532507942,0.358326,67354.0,67353.0,0.24278736]
[1721532508140,0.002,67354.0,67353.0,0.36205651]
[1721532508691,0.002,67354.0,67353.0,0.24327951]
[1721532509318,0.002,67354.0,67353.0,0.24278736]
[1721532509498,0.1447292,67354.0,67353.0,0.24278736]
[1721532510476,0.1447292,67354.0,67353.0,0.16561257]
[1721532510682,0.3822792,67354.0,67353.0,0.15726644]
[1721532511103,0.3822792,67354.0,67353.0,0.15164613]
[1721532511503,0.3822792,67354.0,67353.0,0.16561257]
[1721532513690,0.358325,67354.0,67353.0,0.16561257]
[1721532513919,0.120775,67354.0,67353.0,0.16561257]
[1721532514524,0.120775,67354.0,67353.0,0.15726644]
[1721532514791,0.358325,67354.0,67353.0,0.15726644]
[1721532518072,0.427525,67354.0,67353.0,0.15726644]
[1721532518275,0.4940317,67354.0,67353.0,0.15726644]
[1721532518487,0.4940317,67354.0,67353.0,0.1433]
[1721532523135,0.7545817,67354.0,67353.0,0.1433]
[1721532526934,0.7545817,67354.0,67353.0,0.144224]
[1721532527355,0.76329078,67354.0,67353.0,0.144224]
[1721532535334,1.00084078,67354.0,67353.0,0.144224]
[1721532535646,1.09084078,67354.0,67353.0,0.144224]
[1721532535849,1.11406842,67354.0,67353.0,0.144224]
[1721532536060,1.02406842,67354.0,67353.0,0.084124]
[1721532536263,1.00084078,67354.0,67353.0,0.084124]
[1721532536642,1.1140683,67354.0,67353.0,0.084124]
[1721532538917,1.0240683,67354.0,67353.0,0.084124]
[1721532539158,1.1140683,67354.0,67353.0,0.084124]
[1721532541449,1.09084078,67354.0,67353.0,0.084124]
[1721532545437,1.13521925,67354.0,67353.0,0.084124]
[1721532547541,1.00195049,67354.0,67353.0,0.084124]
[1721532548133,0.95756172,67354.0,67353.0,0.084124]
[1721532548333,1.00195125,67354.0,67353.0,0.084124]
[1721532550619,0.97872361,67354.0,67353.0,0.084124]
[1721532551032,0.97871861,67354.0,67353.0,0.084124]
[1721532551971,0.93433408,67354.0,67353.0,0.084124]
[1721532553615,0.95756156,67354.0,67353.0,0.084124]
[1721532554431,1.00194441,67354.0,67353.0,0.084124]
[1721532557377,0.95756156,67354.0,67353.0,0.084124]
[1721532557687,1.00194581,67354.0,67353.0,0.084124]
[1721532557883,1.00194613,67354.0,67353.0,0.084124]
[1721532558058,1.12262613,67354.0,67353.0,0.084124]
[1721532558673,1.00194613,67354.0,67353.0,0.084124]
[1721532560490,0.95756156,67354.0,67353.0,0.084124]
[1721532560691,1.00195676,67354.0,67353.0,0.084124]
[1721532562781,1.00195676,67354.0,67353.0,0.09247013]
[1721532562982,0.76440676,67354.0,67353.0,0.084124]
[1721532563560,0.76440676,67354.0,67353.0,0.09247013]
[1721532563763,0.72001156,67354.0,67353.0,0.09247013]
[1721532563967,0.76441021,67354.0,67353.0,0.15627013]
[1721532564334,0.72001156,67354.0,67353.0,0.15627013]
[1721532564915,0.69678408,67354.0,67353.0,0.27956498]
[1721532565086,0.69678408,67354.0,67353.0,0.15627013]
[1721532565309,0.69678408,67354.0,67353.0,0.29616554]
[1721532565522,0.45923408,67354.0,67353.0,0.2795645]
[1721532565740,0.45923408,67354.0,67353.0,0.17287112]
[1721532566315,0.22168408,67354.0,67353.0,0.17287112]
[1721532568971,0.212975,67354.0,67353.0,0.17287112]
[1721532569214,0.212975,67354.0,67353.0,0.41543414]
[1721532569215,0.025,67354.0,67353.0,0.41543414]
[1721532569486,0.025,67354.0,67353.0,0.65298814]
[1721532569726,0.002,67354.0,67353.0,0.65298814]
[1721532569974,0.001,67354.0,67353.0,0.65298814]
[1721532570221,0.002,67354.0,67353.0,0.29214027]
[1721532570473,0.002,67354.0,67353.0,0.41542676]
[1721532570712,0.001,67354.0,67353.0,0.41542676]
[1721532570949,0.001,67354.0,67353.0,0.41942676]
[1721532571429,0.0922,67358.0,67355.0,0.1458]
[1721532571667,0.0922,67358.0,67357.0,0.15414613]
[1721532572116,0.0922,67358.0,67357.0,0.17074183]
[1721532580041,0.210968,67358.0,67357.0,0.17074183]
[1721532580456,0.27033825,67358.0,67357.0,0.1623957]
[1721532580650,0.50787425,67358.0,67357.0,0.1623957]
[1721532581647,0.50787425,67358.0,67357.0,0.17074183]
[1721532582953,0.51287425,67358.0,67357.0,0.17074183]
[1721532583386,0.50787425,67358.0,67357.0,0.17074183]
[1721532584200,0.51287425,67358.0,67357.0,0.17074183]
[1721532584404,0.50787425,67358.0,67357.0,0.17074183]
[1721532584866,0.50787425,67358.0,67357.0,0.1623957]
[1721532585067,0.50787425,67358.0,67357.0,0.0970957]
[1721532585068,0.98294625,67358.0,67357.0,0.0970957]
[1721532585272,1.07294625,67358.0,67357.0,0.0165957]
[1721532585474,0.593857,67356.0,67355.0,0.0805]
[1721532585707,0.616857,67356.0,67355.0,0.0805]
[1721532586740,0.616857,67356.0,67355.0,0.0825]
[1721532587313,0.616857,67356.0,67355.0,0.0805]
[1721532587665,0.616857,67356.0,67355.0,0.0815]
[1721532587869,0.73499444,67356.0,67355.0,0.0815]
[1721532588069,0.73499444,67356.0,67355.0,0.001]
[1721532589537,0.593875,67354.0,67353.0,0.000924]
[1721532589732,0.686075,67354.0,67353.0,0.000924]
[1721532591594,0.686075,67354.0,67353.0,0.001924]
[1721532591770,0.686075,67354.0,67353.0,0.07909879]
[1721532593948,0.686075,67354.0,67353.0,0.08744492]
[1721532594121,0.686075,67354.0,67353.0,0.07909879]
[1721532594901,0.686075,67354.0,67353.0,0.22409879]
[1721532595459,0.686075,67354.0,67353.0,0.23987802]
[1721532595834,0.686075,67354.0,67353.0,0.24822415]
[1721532597683,0.686075,67354.0,67353.0,0.23987802]
[1721532597889,0.79169292,67354.0,67353.0,0.23987802]
[1721532598288,0.79169292,67354.0,67353.0,0.22409879]
[1721532599545,0.79169292,67354.0,67353.0,0.22309879]
[1721532599950,0.79269292,67354.0,67353.0,0.22309879]
[1721532600381,0.79369292,67354.0,67353.0,0.22309879]
[1721532600600,0.79169292,67354.0,67353.0,0.22309879]
[1721532600760,0.79369292,67354.0,67353.0,0.22309879]
[1721532600954,0.79569292,67354.0,67353.0,0.22309879]
[1721532601583,0.79569292,67354.0,67353.0,0.000924]
[1721532601584,1.12324292,67354.0,67353.0,0.000924]
[1721532601788,1.14647136,67354.0,67353.0,0.000924]
[1721532602006,1.05647136,67354.0,67353.0,0.000924]
[1721532602559,1.14647136,67354.0,67353.0,0.000924]
[1721532602762,1.21298915,67354.0,67353.0,0.000924]
[1721532603814,1.24647136,67354.0,67353.0,0.000924]
[1721532604180,1.31297505,67354.0,67353.0,0.000924]
[1721532604610,1.31296458,67354.0,67353.0,0.000924]
[1721532604988,1.31296443,67354.0,67353.0,0.000924]
[1721532606242,1.24647136,67354.0,67353.0,0.000924]
[1721532606741,1.31296443,67354.0,67353.0,0.000924]
[1721532607567,1.24647136,67354.0,67353.0,0.000924]
[1721532607766,1.15647136,67354.0,67353.0,0.000924]
[1721532608380,1.24647136,67354.0,67353.0,0.000924]
[1721532608615,1.22294902,67354.0,67353.0,0.000924]
[1721532609104,1.31294902,67354.0,67353.0,0.000924]
[1721532609420,1.15647136,67354.0,67353.0,0.000924]
[1721532609625,1.24647136,67354.0,67353.0,0.000924]
[1721532609836,1.15647136,67354.0,67353.0,0.000924]
[1721532611868,1.24647136,67354.0,67353.0,0.000924]
[1721532612093,1.15647136,67354.0,67353.0,0.000924]
[1721532612557,1.20079197,67354.0,67353.0,0.000924]
[1721532613247,1.15647136,67354.0,67353.0,0.000924]
[1721532613581,1.20079461,67354.0,67353.0,0.000924]
[1721532613942,1.29079461,67354.0,67353.0,0.000924]
[1721532614383,1.20079135,67354.0,67353.0,0.000924]
[1721532614587,1.29079135,67354.0,67353.0,0.000924]
[1721532615000,1.20079135,67354.0,67353.0,0.000924]
[1721532616086,1.29079135,67354.0,67353.0,0.000924]
[1721532617765,1.29078937,67354.0,67353.0,0.000924]
[1721532618022,1.29078844,67354.0,67353.0,0.000924]
[1721532618481,1.30447136,67354.0,67353.0,0.000924]
[1721532619860,1.29337136,67354.0,67353.0,0.000924]
[1721532621523,1.35984857,67354.0,67353.0,0.000924]
[1721532621741,1.29337136,67354.0,67353.0,0.000924]
[1721532621949,1.31294857,67354.0,67353.0,0.000924]
[1721532623989,1.3129734,67354.0,67353.0,0.000924]
[1721532624832,1.68005697,67354.0,67353.0,0.000924]
[1721532625035,1.66303085,67354.0,67353.0,0.000924]
[1721532625828,1.65903085,67354.0,67353.0,0.000924]
[1721532626238,1.65903085,67354.0,67353.0,0.001924]
[1721532626239,1.67503085,67354.0,67353.0,0.001924]
[1721532626438,1.66703085,67354.0,67353.0,0.001924]
[1721532626647,1.65903085,67354.0,67353.0,0.000924]
[1721532626844,1.66803085,67354.0,67353.0,0.000924]
[1721532627057,1.65920099,67354.0,67353.0,0.000924]
[1721532627452,1.66920114,67354.0,67353.0,0.000924]
[1721532628304,1.67920114,67354.0,67353.0,0.001924]
[1721532628755,1.71870899,67354.0,67353.0,0.000924]
[1721532629131,1.73070899,67354.0,67353.0,0.001924]
[1721532629306,1.72070899,67354.0,67353.0,0.001924]
[1721532629518,1.73370899,67354.0,67353.0,0.001924]
[1721532629721,1.72170899,67354.0,67353.0,0.000924]
[1721532629896,1.72070899,67354.0,67353.0,0.001924]
[1721532630117,1.73352237,67354.0,67353.0,0.001924]
[1721532630520,1.72052237,67354.0,67353.0,0.001924]
[1721532630933,1.73352237,67354.0,67353.0,0.001924]
[1721532631188,1.72052237,67354.0,67353.0,0.001924]
[1721532631873,1.70852237,67354.0,67353.0,0.000924]
[1721532632261,1.70852237,67354.0,67353.0,0.001924]
[1721532632262,1.72052237,67354.0,67353.0,0.001924]
[1721532632457,1.73352237,67354.0,67353.0,0.001924]
[1721532632651,1.72152237,67354.0,67353.0,0.000924]
[1721532633033,1.72152237,67354.0,67353.0,0.001924]
[1721532633242,1.73352237,67354.0,67353.0,0.001924]
[1721532635227,1.77517624,67354.0,67353.0,0.001924]
[1721532635355,1.73352237,67354.0,67353.0,0.001924]
[1721532636652,1.73352578,67354.0,67353.0,0.001924]
[1721532640132,1.73356256,67354.0,67353.0,0.001924]
[1721532642424,1.77521643,67354.0,67353.0,0.001924]
[1721532642635,0.37561872,67352.0,67342.0,0.0817]
[1721532642896,0.57473472,67345.0,67341.0,0.002]
[1721532643164,0.44755072,67342.0,67341.0,0.002]
[1721532643411,1.38440253,67342.0,67341.0,0.002]
[1721532643608,1.8462451,67342.0,67341.0,0.002]
[1721532644881,1.8582451,67342.0,67341.0,0.002]
[1721532645082,1.8462451,67342.0,67341.0,0.002]
[1721532645288,1.16036172,67340.0,67333.0,0.07717479]
[1721532645515,1.7301771,67340.0,67333.0,0.07717479]
[1721532646420,1.73001728,67340.0,67333.0,0.07717479]
[1721532646628,1.74401728,67340.0,67333.0,0.07717479]
[1721532647301,1.79366647,67340.0,67333.0,0.07717479]
[1721532647532,1.80766647,67340.0,67333.0,0.07717479]
[1721532648207,1.79366647,67340.0,67333.0,0.07717479]
[1721532648421,1.91833488,67340.0,67333.0,0.07717479]
[1721532648843,1.90433488,67340.0,67333.0,0.07717479]
[1721532649292,1.91833488,67340.0,67333.0,0.07717479]
[1721532649499,1.80750456,67340.0,67333.0,0.07717479]
[1721532649920,1.80750556,67340.0,67333.0,0.07717479]
[1721532650131,1.87670556,67340.0,67333.0,0.07717479]
[1721532650334,1.82705637,67340.0,67333.0,0.07717479]
[1721532650539,1.73682859,67340.0,67333.0,0.07717479]
[1721532650759,1.54105293,67340.0,67339.0,0.152007]
[1721532650962,1.51651803,67340.0,67339.0,0.152007]
[1721532651368,1.50251803,67340.0,67339.0,0.152007]
[1721532651517,1.51651803,67340.0,67339.0,0.152007]
[1721532651758,1.62822187,67340.0,67339.0,0.152007]
[1721532651958,1.61422187,67340.0,67339.0,0.152007]
[1721532652163,1.62822187,67340.0,67339.0,0.152007]
[1721532652697,1.71822187,67340.0,67339.0,0.152007]
[1721532653229,1.73222187,67340.0,67339.0,0.152007]
[1721532653470,1.70422187,67340.0,67339.0,0.152007]
[1721532653723,1.71325456,67340.0,67339.0,0.152007]
[1721532653979,1.72725456,67340.0,67339.0,0.152007]
[1721532657524,1.76890843,67340.0,67339.0,0.009207]
[1721532658391,1.83527267,67340.0,67339.0,0.009207]
[1721532658969,1.76890843,67340.0,67339.0,0.009207]
[1721532659219,1.83527282,67340.0,67339.0,0.009207]
[1721532659410,1.79361895,67340.0,67339.0,0.009207]
[1721532659769,1.61555072,67340.0,67339.0,0.152007]
[1721532662392,1.68191724,67340.0,67339.0,0.152007]
[1721532663246,1.61555072,67340.0,67339.0,0.152007]
[1721532663398,1.68191724,67340.0,67339.0,0.152007]
[1721532663606,1.83626681,67340.0,67339.0,0.152007]
[1721532664525,1.83627658,67340.0,67339.0,0.152007]
[1721532667325,1.76990029,67340.0,67339.0,0.152007]
[1721532668368,1.79465849,67340.0,67339.0,0.152007]
[1721532670374,1.88319157,67340.0,67339.0,0.152007]
[1721532670809,1.79319157,67340.0,67339.0,0.152007]
[1721532670980,1.67990029,67340.0,67339.0,0.152007]
[1721532671157,1.79321876,67340.0,67339.0,0.152007]
[1721532671354,1.76845593,67340.0,67339.0,0.152007]
[1721532671955,1.79323005,67340.0,67339.0,0.152007]
[1721532672903,1.04494046,67340.0,67339.0,0.152007]
[1721532673101,1.02558482,67340.0,67339.0,0.152007]
[1721532674046,0.99746805,67340.0,67339.0,0.152007]
[1721532674418,1.23506805,67340.0,67339.0,0.152007]
[1721532674581,1.24898157,67340.0,67339.0,0.152007]
[1721532674809,1.26298157,67340.0,67339.0,0.152007]
[1721532676263,1.35298157,67340.0,67339.0,0.152007]
[1721532676475,1.26298157,67340.0,67339.0,0.152007]
[1721532677648,1.35274075,67340.0,67339.0,0.152007]
[1721532677892,1.35134014,67340.0,67339.0,0.152007]
[1721532678099,1.26274075,67340.0,67339.0,0.152007]
[1721532679724,1.35134014,67340.0,67339.0,0.152007]
[1721532680441,1.44134014,67340.0,67339.0,0.152007]
[1721532680692,1.35134014,67340.0,67339.0,0.152007]
[1721532680932,1.35128246,67340.0,67339.0,0.152007]
[1721532681181,1.2384107,67340.0,67339.0,0.152007]
[1721532681382,1.35128596,67340.0,67339.0,0.152007]
[1721532682035,1.44128596,67340.0,67339.0,0.152007]
[1721532682264,1.35128596,67340.0,67339.0,0.152007]
[1721532682676,1.5056677,67340.0,67339.0,0.152007]
[1721532682885,1.64517555,67340.0,67339.0,0.152007]
[1721532683092,1.55654875,67340.0,67339.0,0.152007]
[1721532683738,1.55654875,67340.0,67339.0,0.091107]
[1721532684446,1.66737199,67340.0,67339.0,0.091107]
[1721532685550,0.92279672,67337.0,67336.0,0.009207]
[1721532685767,1.30685536,67337.0,67336.0,0.009207]
[1721532685978,1.54446536,67337.0,67336.0,0.009207]
[1721532686191,1.64446536,67337.0,67336.0,0.009207]
[1721532686612,1.73582727,67337.0,67336.0,0.009207]
[1721532686818,1.89017684,67337.0,67336.0,0.084407]
[1721532687028,1.89017684,67337.0,67336.0,0.009207]
[1721532687242,1.76951448,67337.0,67336.0,0.009207]
[1721532687452,1.90254652,67337.0,67336.0,0.009207]
[1721532687886,1.90354652,67337.0,67336.0,0.009207]
[1721532688124,1.90454652,67337.0,67336.0,0.009207]
[1721532688363,1.78551448,67337.0,67336.0,0.009207]
[1721532688617,1.77151448,67337.0,67336.0,0.009207]
[1721532688848,1.90454652,67337.0,67336.0,0.009207]
[1721532689078,1.78451448,67337.0,67336.0,0.009207]
[1721532689314,1.9175959,67337.0,67336.0,0.009207]
[1721532689558,1.8275959,67337.0,67336.0,0.009207]
[1721532689795,1.8275959,67337.0,67336.0,0.070507]
[1721532689796,1.69451448,67337.0,67336.0,0.070507]
[1721532690297,1.6569126,67337.0,67336.0,0.070507]
[1721532690542,1.68155483,67337.0,67336.0,0.070507]
[1721532691006,1.77155483,67337.0,67336.0,0.070507]
[1721532691242,1.75755483,67337.0,67336.0,0.070507]
[1721532691471,1.78455483,67337.0,67336.0,0.070507]
[1721532691887,1.75755483,67337.0,67336.0,0.070507]
[1721532692092,1.60320526,67337.0,67336.0,0.070507]
[1721532692299,1.63120526,67337.0,67336.0,0.070507]
[1721532692506,1.61720526,67337.0,67336.0,0.070507]
[1721532693605,1.60320849,67337.0,67336.0,0.070507]
[1721532693814,1.61720849,67337.0,67336.0,0.070507]
[1721532694023,1.61721133,67337.0,67336.0,0.070507]
[1721532694431,1.7575609,67337.0,67336.0,0.070507]
[1721532694659,1.7715609,67337.0,67336.0,0.070507]